Cogmind - Beta 14 @@@ ROGUE MODE // 2024.11.03 @ 17:26:34 Player: N.W.L Result: Destroyed by Z8-HRQ(R) with Subdweller Laser Performance ------------- Evolutions (0) 0 Regions Visited (2) 400 Robots Destroyed (45) 225 Value Destroyed (1051) 1051 Prototype IDs (11) 220 Alien Tech Used (0) 0 Bonus (0) 0 TOTAL SCORE: 1896 Bonus ------- None Cogmind --------- Core Integrity 0/250 Matter 300/300 Energy 180/180 System Corruption 0% Temperature Cool (15) Movement Treading (160) Location -10/Subcaves Parts ------- > --- POWER (1) -------- Meta Core > --- PROPULSION (2+1) - Light Treads Light Treads > --- UTILITY (2) ------ Scrap Shield > --- WEAPON (2+1) ----- Subdweller Beam Cannon Makeshift Hammer (+) Makeshift Sword > --- INVENTORY (5) ---- Spiked Treads Huge Storage Unit Subdweller Laser Grenade Launcher Peak State ------------ > --- POWER ------------ Meta Core > --- PROPULSION ------- Light Treads Light Treads > --- UTILITY ---------- Seismic Detector Scrap Shield > --- WEAPON ----------- Battle Cannon Makeshift Hammer Makeshift Sword > --- INVENTORY -------- Spiked Treads Huge Storage Unit Subdweller Laser Grenade Launcher Multitool [Rating: 30] Favorites ----------- Power Ion Engine Engine Ion Engine Power Core Meta Core Propulsion Light Treads Treads Light Treads Leg Aluminum Leg Utility High-capacity Storage Unit Device Seismic Detector Storage High-capacity Storage Unit Protection Light Armor Plating Weapon Battle Cannon Energy Gun EM Pulse Gun Energy Cannon Subdweller Beam Cannon Ballistic Gun Subdweller Machine Gun Ballistic Cannon Battle Cannon Launcher Grenade Launcher Special Weapon Mining Laser Impact Weapon Makeshift Hammer Slashing Weapon Makeshift Sword Build | -11 -10 -10 ------- Run | Yrd Mat Sub Slots Evolved . | . . . Power . | . . . Propulsion . | . . . Utility . | . . . Weapon . | . . . Parts Attached 57 | . 26 31 Power 7 | . 5 2 Engine 6 | . 5 1 Core 1 | . . 1 Reactor . | . . . Propulsion 7 | . 4 3 Treads 7 | . 4 3 Leg . | . . . Wheel . | . . . Hover . | . . . Flight . | . . . Utility 14 | . 4 10 Device 4 | . . 4 Storage 2 | . 2 . Processor . | . . . Hackware . | . . . Protection 8 | . 2 6 Artifact . | . . . Weapon 29 | . 13 16 Energy Gun 8 | . 6 2 Energy Cannon 1 | . . 1 Ballistic Gun 3 | . 2 1 Ballistic Cannon 6 | . . 6 Launcher 7 | . 5 2 Special Weapon 1 | . . 1 Impact Weapon 2 | . . 2 Slashing Weapon 1 | . . 1 Piercing Weapon . | . . . Special Melee Weapon . | . . . Unidentified Prototypes . | . . . Parts Lost 7 | . 2 5 Power 1 | . 1 . Propulsion 1 | . . 1 Utility 3 | . 1 2 Weapon 2 | . . 2 Highest Loss Streak 2 | . 2 2 To Critical Strikes . | . . . Average Slot Usage (%) 94 | . 99 91 Engine 11 | . 13 10 Core 1 | . . 2 Treads 26 | . 27 26 Device 4 | . . 7 Storage 9 | . 14 7 Protection 9 | . 13 7 Energy Gun 9 | . 19 5 Ballistic Gun 3 | . 3 3 Ballistic Cannon 9 | . . 13 Launcher 1 | . 5 . Impact Weapon 2 | . . 3 Peak Build Rating 30 | 7 9 30 Average Rating 14 | 6 8 16 On Entrance 7 | 6 6 9 Naked Turns . | . . . Heaviest Build 55 | 13 53 55 Greatest Support 40 | 20 40 40 Greatest Overweight (x) 17 | . 1 17 Average Overweight (x) 1 | . . 1 Largest Inventory Capacity 20 | 8 20 20 Average Capacity 15 | 8 19 13 Most Carried 20 | 8 20 20 Average Carried 13 | 7 16 12 Final Capacity 20 | 8 20 5 Final Carried 20 | 7 20 4 Class Distribution -------------------- 68% | Mutant 16% | Subdweller-Mutant 15% | Derelict-Mutant Dominant Class ---------------- Mutant | -10/Materials Mutant | -10/Subcaves Resources | -11 -10 -10 ----------- Run | Yrd Mat Sub Matter Collected 1269 | 200 458 611 Remotely . | . . . Salvage Created 1213 | 138 756 319 Parts 60 | 10 41 9 Haulers Intercepted 2 | . 2 . Recyclers Shooed 2 | . 2 . Parts Field Recycled . | . . . Retrieved Matter . | . . . Parts Self-Destructed 11 | . . 11 Prevented . | . . . Kills | -11 -10 -10 ------- Run | Yrd Mat Sub Combat Hostiles Destroyed 30 | . 17 13 Melee 1 | . . 1 Guns 8 | . 4 4 Cannons 3 | . . 3 AOE 16 | . 13 3 Classes Destroyed 10 | 2 6 2 Worker 2 | . 2 . Builder 1 | . 1 . Tunneler 2 | 2 . . Hauler 2 | . 2 . Recycler 4 | 1 3 . Turret 2 | . . 2 Watcher 2 | . 2 . Swarmer 9 | . 6 3 Grunt 11 | . 11 . Subdweller 10 | . . 10 Best Kill Streak 4 | 2 4 4 Combat Bots Only 4 | . 3 4 Max Kills in Single Turn 3 | 1 3 2 Gunslinging . | . . . Exploded 2 | . 2 2 Melee 1 | . . 1 Uniques/NPCs Destroyed . | . . . Combat | -11 -10 -10 -------- Run | Yrd Mat Sub Hostile Shots Fired 203 | . 75 128 Missed 73 | . 22 51 Damage Taken 2112 | . 609 1503 Core 254 | . 66 188 Absorbed by Shields . | . . . Regen/Repaired (Parts) 119 | . 119 . Core Remaining (%) 100 | 100 . . Volleys Fired 157 | 11 80 66 Largest 2 | 2 2 2 Hottest 100 | 80 80 100 Shots Fired 258 | 22 134 102 Gun 176 | 22 110 44 Cannon 42 | . . 42 Launcher 28 | . 24 4 Special 12 | . . 12 Kinetic 77 | . 22 55 Thermal 78 | 11 44 23 Explosive 28 | . 24 4 Electromagnetic 75 | 11 44 20 Robot Hit Streak 13 | 4 9 13 Robot Miss Streak 4 | 2 4 1 Penetration Max . | . . . Secondary Targets . | . . . Shots Hit Robots 144 | 9 70 65 Core Hits 69 | 4 43 22 Critical Kills . | . . . Critical Parts Destroyed . | . . . Critical Strikes 1 | . . 1 Corrupt 1 | . . 1 Melee Attacks 37 | . . 37 Impact 19 | . . 19 Slashing 18 | . . 18 Piercing . | . . . Sneak Attacks . | . . . Combat Hostiles . | . . . Follow-up Attacks 4 | . . 4 Damage Inflicted 3734 | 119 2101 1514 Guns 1415 | 119 754 542 Cannons 462 | . . 462 Explosions 1532 | . 1344 188 Melee 322 | . . 322 Ramming 3 | . 3 . Kinetic 763 | . 105 658 Thermal 619 | 56 358 205 Explosive 1532 | . 1344 188 Electromagnetic 495 | 63 291 141 Impact 147 | . . 147 Slashing 175 | . . 175 Piercing . | . . . Highest Corruption . | . . . Average Corruption . | . . . Corruption Purged . | . . . Corruption Blocked . | . . . Overload Shots . | . . . Overflow Damage 74 | . 40 34 Projectiles . | . . . Explosions 40 | . 40 . Melee 34 | . . 34 Knockbacks 6 | . . 6 Impact 2 | . . 2 Kinetic 4 | . . 4 Secondary . | . . . Self-Inflicted Damage 54 | . 48 6 Shots 4 | . 3 1 Rammed 3 | . 3 . Targets Rammed 3 | . 3 . Kicked . | . . . Crushed . | . . . Highest Temperature 323 | 128 323 7 Average Temperature 72 | 61 75 2 Received Heat Transfer 540 | . 249 291 Siege Activations . | . . . Robots Corrupted 2 | . . 2 Combat Hostiles 2 | . . 2 Parts Fried 5 | . . 5 Impact Corruptions 2 | . . 2 Robots Melted . | . . . Combat Hostiles . | . . . Parts Melted 2 | . 2 . Heat Transferred 1200 | 125 825 250 Parts Sabotaged . | . . . Parts Stolen . | . . . Parts Stripped . | . . . Power Chain Reactions . | . . . Alert | -11 -10 -10 ------- Run | Yrd Mat Sub Peak Influence 226 | 15 226 . Initial 9 | . 9 . Average 56 | 9 58 . Maximum Alert Level 1 | . 1 . Low Security (%) 96 | 100 95 . Level 1 3 | . 4 . Level 2 . | . . . Level 3 . | . . . Level 4 . | . . . Level 5 . | . . . High Security . | . . . Max Security . | . . . Squads Dispatched 4 | . 4 . Investigation 2 | . 2 . Extermination . | . . . Reinforcement 2 | . 2 . Assault . | . . . Garrison . | . . . Intercept . | . . . Searches Triggered . | . . . Construction Impeded . | . . . Haulers Reinforced . | . . . Active Scanning Responses . | . . . Cargo Convoy Interrupts . | . . . Stealth | -11 -10 -10 --------- Run | Yrd Mat Sub Distress Signals 2 | . 2 . Communications Jammed . | . . . Distress Signals . | . . . Times Spotted 62 | . 27 35 Peak Tracking Total 5 | . 5 4 Tactical Retreats 3 | . 1 2 Traps | -11 -10 -10 ------- Run | Yrd Mat Sub Traps Triggered 3 | . 2 1 Indirectly . | . . . Trap Hack Attempts . | . . . Triggered . | . . . Disarmed . | . . . Reprogrammed . | . . . Reused . | . . . Traps Extracted . | . . . Installed . | . . . Triggered . | . . . Machines | -11 -10 -10 ---------- Run | Yrd Mat Sub Machines Disabled 4 | . 2 2 Max in Single Turn 1 | . 1 1 Machines Repaired . | . . . Machines Dismantled . | . . . Machines Sabotaged . | . . . Overloaded Fab Kills . | . . . Hacking | -11 -10 -10 --------- Run | Yrd Mat Sub Machines Accessed 8 | . 7 1 Terminals 5 | . 5 . Fabricators . | . . . Repair Stations 1 | . 1 . Recycling Units 1 | . 1 . Scanalyzers . | . . . Garrison Access . | . . . Total Hacks 18 | . 17 1 Successful 10 | . 9 1 Failed 8 | . 8 . Catastrophic 2 | . 2 . Database Lockouts . | . . . Manual 8 | . 8 . Terminals 12 | . 12 . Fabricators . | . . . Repair Stations 3 | . 3 . Recycling Units 2 | . 2 . Scanalyzers . | . . . Garrison Access . | . . . Terminal Hacks 4 | . 3 1 Robot Analysis 2 | . 2 . Locate Traps 1 | . 1 . Derelict Proto ID Bank 1 | . . 1 Fabricator Hacks . | . . . Repair Station Hacks 2 | . 2 . Scan Component 1 | . 1 . Repair 1 | . 1 . Recycling Unit Hacks . | . . . Scanalyzer . | . . . Garrison Access Hacks . | . . . Unauthorized Hacks 4 | . 4 . Terminals 4 | . 4 . Skim 4 | . 4 . Fabricators . | . . . Repair Stations . | . . . Recycling Units . | . . . Scanalyzers . | . . . Garrison Access . | . . . Data Cores Recovered . | . . . Used . | . . . Hacking Detections 7 | . 7 . Full Trace Events 3 | . 3 . Feedback Events . | . . . Feedback Blocked . | . . . Robot Schematics Acquired . | . . . Robots Built . | . . . Authchips . | . . . Time . | . . . Total Robot Build Rating . | . . . Part Schematics Acquired . | . . . Parts Built . | . . . Authchips . | . . . Time . | . . . Total Part Build Rating . | . . . Parts Repaired 1 | . 1 . Time 26 | . 26 . Parts Recycled . | . . . Recycled Matter . | . . . Retrieved Matter . | . . . Retrieved Components . | . . . Parts Scanalyzed . | . . . Part Schematics Acquired . | . . . Parts Damaged . | . . . Bothacking | -11 -10 -10 ------------ Run | Yrd Mat Sub Used RIF Installer . | . . . Robots Hacked . | . . . Non-combat . | . . . Combat . | . . . Robot Hacks Applied . | . . . Relay Couplers Released . | . . . Fabnet Peak Effective % . | . . . Robots Rewired . | . . . Allies Hacked . | . . . Hacks Repelled . | . . . Allies | -11 -10 -10 -------- Run | Yrd Mat Sub Total Allies . | . . . Largest Group . | . . . Highest-Rated Group . | . . . Highest-Rated Ally . | . . . Total Orders . | . . . Ally Attacks . | . . . Total Damage . | . . . Kills . | . . . Allies Corrupted . | . . . Allies Melted . | . . . Intel | -11 -10 -10 ------- Run | Yrd Mat Sub Robot Analysis Total 2 | . 2 . Derelict Logs Recovered 1 | . . 1 Drone Launches . | . . . Drone Recoveries . | . . . Exploration | -11 -10 -10 ------------- Run | Yrd Mat Sub Turns Passed 7227 | 77 2215 4935 Spaces Moved 2450 | 20 696 1734 Core 100 | . . 100 Treads 2295 | . 661 1634 Legs 55 | 20 35 . Wheels . | . . . Hover . | . . . Flight . | . . . Fastest Speed 120 | 120 120 160 Average Speed 224 | 120 233 222 Slowest Speed 900 | 120 240 900 Overloaded Moves . | . . . Propulsion Burnouts . | . . . Robots Hopped . | . . . Cave-ins Triggered . | . . . Exploration Rate (%) 52 | 3 96 58 Regions Visited 2 Branch Regions 1 Pre-discovered Areas . | . . . Known Exits Taken . | . . . Unknown Exits Taken 2 | 1 1 . Scrap Searched 13 | . . 13 Spaces Dug 36 | . 30 6 Terrain Destroyed 150 | . 124 26 Melee 2 | . . 2 Projectile 8 | . . 8 AOE 140 | . 124 16 Terrain Rammed . | . . . Walls Destroyed . | . . . Machines Disabled . | . . . Actions | -11 -10 -10 --------- Run | Yrd Mat Sub Total 3851 | 52 1145 2654 Wait 1051 | 17 303 731 Move 2448 | 19 695 1734 Hop . | . . . Pick Up 52 | 3 26 23 Fast Attach 8 | . 3 5 Attach 12 | . 4 8 Detach 2 | . 1 1 Swap 37 | . 19 18 Drop 37 | 2 11 24 Fire 157 | 11 80 66 Melee 32 | . . 32 Ram . | . . . Kick . | . . . Crush 3 | . 3 . Escape Stasis . | . . . Rewire . | . . . Trap . | . . . Miscellaneous 12 | . . 12 Route ------- -11/Scrapyard -10/Materials (discovered 5 exits: [*Mat x2] / [*Min x2] / *Sub) -10/Subcaves (discovered 3 exits: [*Mat x2] / [*Rec]) History --------- Turn | Location | Event 17 | -11/Scrapyard | Discovered new exit (range 3) 78 | -11/Scrapyard | Entered Materials 301 | -10/Materials | Build established: Mutant 493 | -10/Materials | Discovered new exit (range 16) 528 | -10/Materials | Discovered new exit (range 15) 1060 | -10/Materials | Discovered new exit (range 16) 1370 | -10/Materials | Repaired Lgt. Treads 1970 | -10/Materials | Discovered new exit (range 7) 2094 | -10/Materials | Discovered new exit (range 8) 2293 | -10/Materials | Entered Subcaves 2298 | -10/Subcaves | Learned Materials security intel 2349 | -10/Subcaves | Discovered new exit (range 10) 2790 | -10/Subcaves | Visited 4L-MR0's lab 2820 | -10/Subcaves | Found Meta Core 3513 | -10/Subcaves | Ambushed by Subdweller buried in earth 3554 | -10/Subcaves | Core integrity fell below 50% 5012 | -10/Subcaves | Discovered new exit (range 13) 5241 | -10/Subcaves | Build established: Subdweller-Mutant 5378 | -10/Subcaves | Disturbed a concealed Subdweller 6137 | -10/Subcaves | Attached Meta Core, gained temporary slots: Propulsion, Utility, Weapon 6438 | -10/Subcaves | Build established: Derelict-Mutant 6520 | -10/Subcaves | Shifting Twisted Machinery released Mak. Sword 6526 | -10/Subcaves | Shifting Twisted Machinery released Sub. Monowheel 6595 | -10/Subcaves | Shifting Twisted Machinery released Sub. Power Source 6755 | -10/Subcaves | Discovered new exit (range 9) 7216 | -10/Subcaves | A Subdweller sparked back to life 7216 | -10/Subcaves | A Subdweller sparked back to life 7216 | -10/Subcaves | A Subdweller sparked back to life 7224 | -10/Subcaves | Core integrity fell below 20% 7228 | -10/Subcaves | Destroyed by Z8-HRQ(R) with Subdweller Laser Last Messages --------------- 07030_ Found 47 Matter. 07034_ Searching scrap... 07034_ Found Battle Rifle. 07034_ Found Mak. Hacking Suite. 07034_ Found 61 Matter. 07037_ Searching scrap... 07037_ Found Sub. Machine Gun. 07037_ Found 44 Matter. 07039_ Subatomizers dissect the Mak. Hacking Suite. 07075_ Scrap Shield Fragment affixed to Scrap Shield (+41). 07091_ Scrap Shield Fragment affixed to Scrap Shield (+42). 07118_ ZE-OR5(u) tweaks Twisted Machinery. 07143_ Scrap Shield Fragment affixed to Scrap Shield (+45). 07145_ Scrap Shield Fragment affixed to Scrap Shield (+13). 07216_ Sneak attack on TJ-SFO(R). 07216_ TJ-SFO(R) creaks and sparks as it begins to move. 07216_ OJ-QGW(R) creaks and sparks as it begins to move. 07216_ Z8-HRQ(R) creaks and sparks as it begins to move. 07223_ Dropped Scrap Shield Fragment. 07227_ ZE-OR5(u) builds Twisted Machinery. Map ----- +----------------------------------------------------+ | ?????????????????????????????????????????????? | | ?????????????????????????????????????????????? | | ?????????????????????????????????????????????? | | ?????????????????????????????????????????????? | | ?????????????????????????????????????????????? | | ?????????????????????????????????????????????? | | ?????????????????????????????????????????????? | | ?????????????????????????????????????????????? | | ?????????????????????????????????????????????? | | ?????????????????????? ??????????????????????? | | ?????????????????????? ?????????????????????? | | ?????????????????????? ?????????????????????? | | ?????????????????????? ?????????????????????? | | ????????????????????? #?????????????????????? | | ????????????????????? ?????????????????????? | | ????????????????????? #?????????????????????? | | ????????????????????? ?????????????????????? | | ????????????????????? #?????????????????????? | | ????????????????????? ##????????????????????? | | ????????????????????? #????????????????????? | | ??????????????????### #<##???#?????????????? | | ??????????????????# #??? ??????##?????? | | ??????????????????# " #??? ????? #?????? | | ?????????????????##R < < #??? ???## "#?????? | | ?????????????????# #R <#??# ???""%"##????? | | ?????????????????## @;R< #### #?" & ""#????? | | ?????????????????# # ## ## #?" ??????? | | ?????????????????## "" ##""% ???????? | | ?????????????????# # """##" ^"" ????????? | | ?????????????????# "" "##??? ?????????? | | ????????????????### # "###?? ^ ??????????? | | ???????????????## ## #u ##?# #???????????? | | ???????????????# """"### "#?????#?????? | | ????############ "" "##??? #?????? | | ???##"""""##*"## ## ""###### "#?? ##?????? | | ??## #%"## ######????# "## #?????? | | ??#" ### ["## ########## " #?????? | | ??#" ##?#^ """ "" " ##" "## ###?????? | | ??# #??##" " "" " "#??#???????? | | ??# "#???#" "" #????????### | | ??# "###?#" % # ##????????# | | ??# ^"###" %| ####### ##??####??## | | ??# "##" |"" ##????## #?## #?## | | ??#" % %"# " ##?????# ##?# #?# | | ??# "*[!"# ] "" ##?????## #?? #?### | | ??##"%[ # %] #??????# ##??# ##??## | | ???#""" "# ##??????# ##### #???#" | | ???### "### " < #??????## # "#####" | | ?????####?## #??????# """""" | | ???????????# #?????### * " "" "" | +----------------------------------------------------+ Best States ------------- Heat Dissipation 25 Energy Generation 17 Energy Capacity 250 Matter Stores 300 Matter Capacity 300 Sight Range 16 Terrain Scan Range 16 Terrain Scan Density 10 Armor Coverage 800 Evasion (%) 55 Recoil Reduction 2 Item Schematics ----------------- None Robot Schematics ------------------ None Fabricated ------------ Nothing Alien Tech Used ----------------- None Achievements -------------- None Challenges ------------ None Game ------ Seed BombardmentLinkedMediator Manual? 0 Play Time 00:32:30 Cumulative 356.8 hours Start 2024.11.03 @ 07:12:56 End 2024.11.03 @ 17:26:34 Sessions 5 Manual Loads 0 Difficulty Rogue Special Mode None Game No. 175 Rogue 175 Adventurer 0 Explorer 0 Win Type - Total 11 Types 6/1/4/0/0/0/0/0/0 Lore% 86 Gallery% 89 Achievement% 73 Wizard Run 0 Options --------- Layout 0 ASCII 0 Keyboard 0 Movement Mouse Keybinds 0 Fullscreen 2 Font 12/Smallcaps Map View 83x54 Zoom Use 0% Tactical HUD 1 Map Filters NONE Filters NONE Steam 1 RUN: d49e14cd-0bbf-45cd-ad68-5fe2444a8f11